Cogmind - Beta 16 @@@ ROGUE MODE // 2026.02.08 @ 22:18:16 Player: Asbjorn2 Result: Destroyed by S-10 Pest with Light Assault Rifle Performance ------------- Evolutions (2) 1000 Regions Visited (5) 1000 Robots Destroyed (23) 115 Value Destroyed (619) 619 Prototype IDs (2) 40 Alien Tech Used (0) 0 Bonus (214) 214 TOTAL SCORE: 2988 Bonus ------- High Alert Combat Kills 14 Entered Garrisons 200 Cogmind --------- Core Integrity 0/550 Matter 9/300 Energy 98/100 System Corruption 0% Temperature Cool (0) Movement Core (50) Location -8/Garrison Parts ------- > --- POWER (1) -------- (None) > --- PROPULSION (4) --- (None) > --- UTILITY (4) ------ (None) > --- WEAPON (2) ------- (None) > --- INVENTORY (5) ---- Nuclear Core Flight Unit Cesium-ion Thruster Cesium-ion Thruster Spread Laser Peak State ------------ > --- POWER ------------ Light Ion Engine > --- PROPULSION ------- Flight Unit Flight Unit VTOL Module > --- UTILITY ---------- Improved Terrain Scanner Light Armor Plating Light Regenerative Plating > --- WEAPON ----------- Mini Grenade Launcher Mini Grenade Launcher > --- INVENTORY -------- Ion Engine Small Storage Unit Light Assault Rifle Mini Grenade Launcher [Rating: 19] Favorites ----------- Power Light Ion Engine Engine Light Ion Engine Power Core Nuclear Core Propulsion Aluminum Leg Leg Aluminum Leg Wheel Compact Wheel Flight Unit Flight Unit Utility Improved Terrain Scanner Device Improved Terrain Scanner Storage Small Storage Unit Protection Light Armor Plating Weapon Assault Rifle Energy Gun Medium Laser Energy Cannon Advanced Beam Cannon Ballistic Gun Assault Rifle Launcher Mini Grenade Launcher Build | -11 -10 -9 -9 -8 -8 ------- Run | Yrd Mat Mat Sto Mat Gar Slots Evolved 4 | . . 2 . 2 . Power . | . . . . . . Propulsion 2 | . . 1 . 1 . Utility 2 | . . 1 . 1 . Weapon . | . . . . . . Parts Attached 26 | 7 3 8 7 . 1 Power 3 | 1 . . 1 . 1 Engine 2 | 1 . . 1 . . Core 1 | . . . . . 1 Reactor . | . . . . . . Propulsion 9 | 4 . 3 2 . . Treads . | . . . . . . Leg 3 | 2 . 1 . . . Wheel 2 | 2 . . . . . Hover . | . . . . . . Flight 4 | . . 2 2 . . Utility 6 | 1 1 2 2 . . Device 2 | . . 1 1 . . Storage 1 | 1 . . . . . Processor . | . . . . . . Hackware . | . . . . . . Protection 3 | . 1 1 1 . . Artifact . | . . . . . . Weapon 8 | 1 2 3 2 . . Energy Gun 1 | . . 1 . . . Energy Cannon 1 | . . 1 . . . Ballistic Gun 4 | 1 2 1 . . . Ballistic Cannon . | . . . . . . Launcher 2 | . . . 2 . . Special Weapon . | . . . . . . Impact Weapon . | . . . . . . Slashing Weapon . | . . . . . . Piercing Weapon . | . . . . . . Special Melee Weapon . | . . . . . . Unidentified Prototypes 2 | . . 1 1 . . Parts Lost 10 | . 1 2 4 2 1 Power 1 | . . . 1 . . Propulsion 6 | . . 2 3 1 . Utility 1 | . . . . 1 . Weapon 2 | . 1 . . . 1 Highest Loss Streak 2 | . 1 2 2 2 1 To Critical Strikes . | . . . . . . Average Backups 5 | 2 6 6 4 5 5 Power 1 | . 1 2 . 1 1 Propulsion 1 | 1 1 . . 1 3 Utility 1 | . . 1 1 . . Weapon 2 | . 2 2 2 1 1 Tool/Special . | . . . . . . Unused Backups 14 | . . 5 2 3 4 Power 3 | . . 2 . 1 . Propulsion 4 | . . . 1 . 3 Utility 4 | . . 3 . 1 . Weapon 3 | . . . 1 1 1 Tool/Special . | . . . . . . Average Slot Usage (%) 68 | . 83 87 81 25 5 Engine 9 | . 14 11 9 . . Leg 13 | . 28 23 1 . . Flight 9 | . . 8 26 8 . Device 5 | . . 3 13 8 . Storage 5 | . 14 6 . . . Protection 7 | . 4 16 10 . . Ballistic Gun 10 | . 22 16 2 . . Launcher 6 | . . . 16 9 5 Peak Build Rating 19 | 5 7 11 19 7 3 Average Rating 8 | 3 5 8 14 6 2 On Entrance 5 | . 5 7 9 7 3 Avg Prop Armor Cover (%) 8 | . . 8 8 . . Naked Turns 60 | . . . . . 60 Heaviest Build 16 | 10 13 16 10 2 1 Greatest Support 30 | 26 20 30 12 4 3 Greatest Overweight (x) 3 | 1 . 3 2 . . Average Overweight (x) . | . . . . . . Largest Inventory Capacity 8 | 8 8 8 8 5 5 Average Capacity 6 | 7 8 6 5 5 5 Most Carried 8 | 5 8 8 5 5 5 Average Carried 5 | 2 6 6 4 4 4 Final Capacity 8 | 8 8 5 5 5 5 Final Carried 7 | 5 7 5 5 5 5 Class Distribution -------------------- 85% | Mutant 14% | Sprinter Dominant Class ---------------- Mutant | -10/Materials Mutant | -9/Materials Sprinter | -9/Storage Mutant | -8/Materials Mutant | -8/Garrison Resources | -11 -10 -9 -9 -8 -8 ----------- Run | Yrd Mat Mat Sto Mat Gar Matter Collected 561 | 193 247 . 121 . . Remotely . | . . . . . . Salvage Created 458 | . 218 13 227 . . Parts 29 | . 11 3 15 . . Haulers Intercepted 1 | . . . 1 . . Recyclers Shooed . | . . . . . . Parts Field Recycled . | . . . . . . Retrieved Matter . | . . . . . . Parts Self-Destructed . | . . . . . . Prevented . | . . . . . . Parts Restored . | . . . . . . Kills | -11 -10 -9 -9 -8 -8 ------- Run | Yrd Mat Mat Sto Mat Gar Combat Hostiles Destroyed 22 | . 5 3 14 . . Guns 6 | . 5 1 . . . AOE 16 | . . 2 14 . . Classes Destroyed 4 | . 1 1 2 . . Hauler 1 | . . . 1 . . Swarmer 9 | . . 3 6 . . Grunt 11 | . 5 . 6 . . Sentry 2 | . . . 2 . . Best Kill Streak 6 | . 2 3 6 . . Combat Bots Only 6 | . 2 3 6 . . Max Kills in Single Turn 3 | . 1 2 3 . . Gunslinging . | . . . . . . Exploded 3 | . . 2 3 . . Melee . | . . . . . . Uniques/NPCs Destroyed . | . . . . . . Combat | -11 -10 -9 -9 -8 -8 -------- Run | Yrd Mat Mat Sto Mat Gar Hostile Shots Fired 211 | . 40 29 44 14 84 Missed 77 | . 12 8 18 6 33 Hits 134 | . 28 21 26 8 51 Projectile 134 | . 28 21 26 8 51 Critical Strikes 7 | . . 1 . 1 5 Damage Taken 1615 | . 346 239 403 121 506 Core 720 | . 11 35 120 91 463 Absorbed by Shields 67 | . . . . . 67 Redirected to Shielding 31 | . 11 20 . . . Regen/Repaired (Parts) 10 | . . . 10 . . Core Remaining (%) 85 | 100 95 . 61 . . Volleys Fired 46 | . 28 5 13 . . Largest 2 | . 2 2 2 . . Hottest 70 | . 40 70 60 . . Shots Fired 87 | . 53 8 26 . . Gun 62 | . 53 8 1 . . Cannon . | . . . . . . Launcher 25 | . . . 25 . . Special . | . . . . . . Kinetic 60 | . 53 6 1 . . Thermal 2 | . . 2 . . . Explosive 25 | . . . 25 . . Electromagnetic . | . . . . . . Robot Hit Streak 10 | . 10 5 5 . . Robot Miss Streak 6 | . 3 2 6 . . Penetration Max . | . . . . . . Secondary Targets 2 | . 1 1 . . . Max Gunslinging Chain 1 | . 1 1 . . . Shots Hit Robots 54 | . 37 5 12 . . Core Hits 38 | . 12 4 22 . . Critical Kills . | . . . . . . Critical Parts Destroyed . | . . . . . . Critical Strikes . | . . . . . . Melee Attacks . | . . . . . . Impact . | . . . . . . Slashing . | . . . . . . Piercing . | . . . . . . Sneak Attacks . | . . . . . . Combat Hostiles . | . . . . . . Follow-up Attacks . | . . . . . . Damage Inflicted 1787 | . 476 181 1130 . . Guns 534 | . 473 54 7 . . Cannons . | . . . . . . Explosions 1250 | . . 127 1123 . . Melee . | . . . . . . Ramming 3 | . 3 . . . . Kinetic 522 | . 473 42 7 . . Thermal 12 | . . 12 . . . Explosive 1250 | . . 127 1123 . . Electromagnetic . | . . . . . . Impact . | . . . . . . Slashing . | . . . . . . Piercing . | . . . . . . Highest Corruption . | . . . . . . Average Corruption . | . . . . . . Corruption Purged . | . . . . . . Corruption Blocked . | . . . . . . Overload Shots . | . . . . . . Overflow Damage 52 | . . . 52 . . Projectiles . | . . . . . . Explosions 52 | . . . 52 . . Melee . | . . . . . . Knockbacks . | . . . . . . Impact . | . . . . . . Kinetic . | . . . . . . Secondary . | . . . . . . Self-Inflicted Damage 176 | . . 50 126 . . Shots 4 | . . 1 3 . . Rammed . | . . . . . . Targets Rammed 1 | . 1 . . . . Kicked 1 | . 1 . . . . Crushed . | . . . . . . Highest Temperature 234 | . 2 234 57 . . Average Temperature 55 | . 2 134 19 . . Received Heat Transfer 563 | . 174 48 66 72 203 Siege Activations . | . . . . . . Martial Activations . | . . . . . . Shielding Activations . | . . . . . . Robots Disrupted . | . . . . . . Combat Hostiles . | . . . . . . Robots Corrupted . | . . . . . . Combat Hostiles . | . . . . . . Parts Fried . | . . . . . . Impact Corruptions . | . . . . . . Robots Melted . | . . . . . . Combat Hostiles . | . . . . . . Parts Melted . | . . . . . . Heat Transferred 37 | . . 37 . . . Parts Sabotaged . | . . . . . . Parts Stolen . | . . . . . . Parts Stripped . | . . . . . . Power Chain Reactions . | . . . . . . Alert | -11 -10 -9 -9 -8 -8 ------- Run | Yrd Mat Mat Sto Mat Gar Maximum Alert Level 2 | . . . 2 1 1 Low Security (%) 72 | 100 100 100 30 72 45 Level 1 23 | . . . 56 27 54 Level 2 3 | . . . 13 . . Level 3 . | . . . . . . Level 4 . | . . . . . . Level 5 . | . . . . . . High Security . | . . . . . . Max Security . | . . . . . . Peak Influence 492 | . 55 97 492 238 386 Initial 198 | . . . 38 198 141 Average 115 | . 13 34 233 193 225 Influence Increases 1290 | . 137 154 654 90 255 Destroy 0b10 Robot/C 440 | . 100 60 280 . . Destroy 0b10 Robot/NC 5 | . . . 5 . . Destroy Leader 92 | . 20 10 62 . . Successful Hack 9 | . . 2 7 . . Disable Machine 75 | . . 15 60 . . Destroy Structure 144 | . 2 22 120 . . Partial Spotted 105 | . . 15 75 . 15 Lose Combat Pursuer 420 | . 15 30 45 90 240 Influence Decreases 904 | . 137 62 274 344 87 Entered New Map 405 | . . . 54 274 77 Time Decay 409 | . 127 52 180 50 . Lost Part 90 | . 10 10 40 20 10 Squads Dispatched 6 | . 1 1 3 1 . Investigation 1 | . . 1 . . . Extermination . | . . . . . . Reinforcement 5 | . 1 . 3 1 . Assault . | . . . . . . Garrison . | . . . . . . Intercept . | . . . . . . Searches Triggered . | . . . . . . Construction Impeded 1 | . . . 1 . . Haulers Reinforced . | . . . . . . Active Scanning Responses . | . . . . . . Cargo Convoy Interrupts . | . . . . . . Stealth | -11 -10 -9 -9 -8 -8 --------- Run | Yrd Mat Mat Sto Mat Gar Distress Signals 6 | . . 1 2 3 . Communications Jammed . | . . . . . . Distress Signals . | . . . . . . Times Spotted 83 | . 9 11 26 14 23 Peak Tracking Total 12 | . 3 5 6 11 12 Tactical Retreats 11 | . 1 1 3 3 3 Traps | -11 -10 -9 -9 -8 -8 ------- Run | Yrd Mat Mat Sto Mat Gar Traps Triggered 6 | . 1 . 1 . 4 Indirectly . | . . . . . . Trap Hack Attempts . | . . . . . . Triggered . | . . . . . . Disarmed . | . . . . . . Reprogrammed . | . . . . . . Reused . | . . . . . . Traps Extracted . | . . . . . . Installed . | . . . . . . Triggered . | . . . . . . Machines | -11 -10 -9 -9 -8 -8 ---------- Run | Yrd Mat Mat Sto Mat Gar Machines Disabled 5 | . . 1 4 . . Max in Single Turn 1 | . . 1 1 . . Machines Repaired . | . . . . . . Machines Dismantled . | . . . . . . Machines Sabotaged . | . . . . . . Overloaded Fab Kills . | . . . . . . Hacking | -11 -10 -9 -9 -8 -8 --------- Run | Yrd Mat Mat Sto Mat Gar Machines Accessed 4 | . . 1 2 1 . Terminals 2 | . . . 2 . . Fabricators . | . . . . . . Repair Stations . | . . . . . . Recycling Units . | . . . . . . Scanalyzers 1 | . . 1 . . . Garrison Access 1 | . . . . 1 . Total Hacks 7 | . . 4 2 1 . Successful 7 | . . 4 2 1 . Failed . | . . . . . . Catastrophic . | . . . . . . Database Lockouts . | . . . . . . Manual . | . . . . . . Terminals 2 | . . . 2 . . Fabricators . | . . . . . . Repair Stations . | . . . . . . Recycling Units . | . . . . . . Scanalyzers 4 | . . 4 . . . Garrison Access 1 | . . . . 1 . Terminal Hacks 2 | . . . 2 . . Open Door 2 | . . . 2 . . Fabricator Hacks . | . . . . . . Repair Station Hacks . | . . . . . . Recycling Unit Hacks . | . . . . . . Scanalyzer 4 | . . 4 . . . Insert Component 2 | . . 2 . . . Analyze 1 | . . 1 . . . Retrieve Study 1 | . . 1 . . . Garrison Access Hacks 1 | . . . . 1 . Unlock Access 1 | . . . . 1 . Unauthorized Hacks . | . . . . . . Terminals . | . . . . . . Fabricators . | . . . . . . Repair Stations . | . . . . . . Recycling Units . | . . . . . . Scanalyzers . | . . . . . . Garrison Access . | . . . . . . Data Cores Recovered . | . . . . . . Used . | . . . . . . Hacking Detections 2 | . . 1 1 . . Full Trace Events 1 | . . 1 . . . Feedback Events . | . . . . . . Feedback Blocked . | . . . . . . Robot Schematics Acquired . | . . . . . . Robots Built . | . . . . . . Authchips . | . . . . . . Time . | . . . . . . Total Robot Build Rating . | . . . . . . Part Schematics Acquired 1 | . . 1 . . . Parts Built . | . . . . . . Authchips . | . . . . . . Time . | . . . . . . Total Part Build Rating . | . . . . . . Part Studies Acquired 1 | . . 1 . . . Parts Repaired . | . . . . . . Time . | . . . . . . Parts Recycled . | . . . . . . Recycled Matter . | . . . . . . Retrieved Matter . | . . . . . . Retrieved Components . | . . . . . . Parts Scanalyzed 1 | . . 1 . . . Part Schematics Acquired 1 | . . 1 . . . Parts Damaged . | . . . . . . Bothacking | -11 -10 -9 -9 -8 -8 ------------ Run | Yrd Mat Mat Sto Mat Gar Used RIF Installer . | . . . . . . Robots Hacked . | . . . . . . Non-combat . | . . . . . . Combat . | . . . . . . Robot Hacks Applied . | . . . . . . Relay Couplers Released . | . . . . . . Fabnet Peak Effective % . | . . . . . . Robots Rewired . | . . . . . . Allies Hacked . | . . . . . . Hacks Repelled . | . . . . . . Allies | -11 -10 -9 -9 -8 -8 -------- Run | Yrd Mat Mat Sto Mat Gar Total Allies . | . . . . . . Largest Group . | . . . . . . Highest-Rated Group . | . . . . . . Highest-Rated Ally . | . . . . . . Total Orders . | . . . . . . Ally Attacks . | . . . . . . Total Damage . | . . . . . . Kills . | . . . . . . Allies Corrupted . | . . . . . . Allies Melted . | . . . . . . Intel | -11 -10 -9 -9 -8 -8 ------- Run | Yrd Mat Mat Sto Mat Gar Active Infowar (turns) 551 | . . 79 360 112 . Terrain 551 | . . 79 360 112 . Robot Analysis Total . | . . . . . . Derelict Logs Recovered . | . . . . . . Drone Launches . | . . . . . . Drone Recoveries . | . . . . . . Exploration | -11 -10 -9 -9 -8 -8 ------------- Run | Yrd Mat Mat Sto Mat Gar Turns Passed 1362 | 55 413 255 360 118 161 Spaces Moved 1826 | 37 253 304 737 276 219 Core 242 | 3 . . . 20 219 Treads . | . . . . . . Legs 396 | 28 253 115 . . . Wheels 6 | 6 . . . . . Hover . | . . . . . . Flight 1182 | . . 189 737 256 . Fastest Speed 32 | 50 120 47 32 40 50 Average Speed 59 | 111 120 71 40 40 50 Slowest Speed 290 | 120 120 290 200 50 50 Overloaded Moves . | . . . . . . Propulsion Burnouts . | . . . . . . Robots Hopped 19 | . . 5 9 5 . Potential Cave-ins . | . . . . . . Cave-ins Triggered . | . . . . . . Exploration Rate (%) 40 | 4 50 21 87 37 42 Regions Visited 5 Branch Regions 1 Pre-discovered Areas . | . . . . . . Known Exits Taken 1 | . . . . 1 . Unknown Exits Taken 4 | 1 1 1 1 . . Scrap Searched . | . . . . . . Spaces Dug . | . . . . . . Terrain Destroyed 160 | . . 20 140 . . Melee . | . . . . . . Projectile . | . . . . . . AOE 160 | . . 20 140 . . Terrain Rammed . | . . . . . . Walls Destroyed . | . . . . . . Machines Disabled . | . . . . . . Actions | -11 -10 -9 -9 -8 -8 --------- Run | Yrd Mat Mat Sto Mat Gar Total 2010 | 48 310 332 772 278 270 Wait 19 | . 14 3 1 . 1 Move 1785 | 36 252 295 718 267 217 Hop 15 | . . 3 9 3 . Pick Up 28 | 3 8 4 9 4 . Fast Attach 15 | 7 1 5 2 . . Attach 12 | . 2 4 5 . 1 Detach 10 | 2 . 4 3 . 1 Swap 1 | . . . 1 . . Drop 28 | . 4 9 11 4 . Fire 46 | . 28 5 13 . . Melee . | . . . . . . Ram . | . . . . . . Kick 1 | . 1 . . . . Crush . | . . . . . . Escape Stasis 50 | . . . . . 50 Rewire . | . . . . . . Trap . | . . . . . . Miscellaneous . | . . . . . . Route ------- -11/Scrapyard -10/Materials (discovered 2 exits: *Mat / [*Min]) -9/Materials (discovered 2 exits: [*Min] / *Sto) -9/Storage -8/Materials -8/Garrison (discovered 1 exit: [*Mat]) History --------- Turn | Location | Event 13 | -11/Scrapyard | Discovered new exit (range 15) 56 | -11/Scrapyard | Entered Materials 206 | -10/Materials | Discovered new exit (range 15) 304 | -10/Materials | Build established: Mutant 435 | -10/Materials | Discovered new exit (range 10) 469 | -10/Materials | Entered another Materials area 469 | -9/Materials | Evolved 2 slots: Propulsion x1, Utility x1 470 | -9/Materials | Discovered new exit (range 8) 475 | -9/Materials | Discovered new exit (range 16) 724 | -9/Materials | Entered Storage 878 | -9/Storage | Found Prototype Protection 881 | -9/Storage | Identified Lgt. Regenerative Plating 1078 | -9/Storage | Discovered new exit (range 16) 1084 | -9/Storage | Entered Materials 1084 | -8/Materials | Evolved 2 slots: Propulsion x1, Utility x1 1202 | -8/Materials | Identified exit to Garrison 1202 | -8/Materials | Entered Garrison 1252 | -8/Garrison | Triggered checkpoint 1252 | -8/Garrison | Triggered checkpoint 1328 | -8/Garrison | Discovered new exit (range 12) 1333 | -8/Garrison | Attempted to access garrison exit controls, blocked by remote lockdown 1339 | -8/Garrison | Core integrity fell below 50% 1359 | -8/Garrison | Core integrity fell below 20% 1363 | -8/Garrison | Destroyed by S-10 Pest with Light Assault Rifle Last Messages --------------- 01302_ Mni. Grenade Launcher destroyed. 01313_ C-45 Heavy ARC bursts open, deploying its payload. 01313_ S-10 Pest unfolds itself. Garrison Door activated. 01328_ EXIT=FOUND 01333_ Attempting to access garrison exit controls... 01333_ Remote lockdown engaged. 01354_ Triggered Stasis Trap. 01354_ A bubble of rippling energy engulfs the area. 01354_ Field strength at 94. 01355_ Field strength at 88. 01356_ Field strength at 78. 01357_ Field strength at 62. 01358_ Field strength at 56. 01358_ Critical hit (Burn: +25). 01359_ Critical hit (Burn: +27). 01360_ Field strength at 30. 01361_ Field strength at 13. 01362_ Field strength at 4. 01362_ Stasis field depleted. Map ----- +----------------------------------------------------+ | ?????????????????????????????????????????????????? | | ?????????????????????????????????????????????????? | | ?????????????????????????????????????????????????? | | ?????????????????????????????????????????????????? | | ?????????????????????????????????????????????????? | | ?????????????????????????????????????????????????? | | ?????????????????????????????????????????????????? | | #####????????????????????????????????????????????? | | # #????????????????????????????????????????????? | | # < #############????????????????????????????????? | | # #????????????????????????????????? | | # #????????????????????????#???????? | | ############## #????????????????????????# ??????? | | ????????## ## #????????????????????????# #####?? | | ???????## # #????????????????????????# #?? | | ???????# #????????????????????????##### #?? | | ???????# # # #????????????????????????????# #?? | | ???????# # # #????????????????????????????# #?? | | ???????####### ###########??????????????????# #?? | | ???????# #??????##+########## ### | | ???????# ##### #??????# ^ | | ?????????????# ######## #??????# ^ | | ?????????????# ####???# #??????# ######### ### | | ?????????????# + #???# ##?????# #???????# #?? | | ?????????????# ## ???+ T#?????# #???????# #?? | | ?????????????# ## #???#s@#??????# #???????# #?? | | ?????????????# ## #???# #??????# #???????# #?? | | ?????????????# ## #???# #???? ## #???????# #?? | | ?????????????# ## #??##s ## ## ##??????# #?? | | ?????????????# ##+#### s ######## #?? | | ?????????????# gg #?? | | ?????????????# g gg #?? | | ?????????????########## ## ## ###########?? | | ????????????????????### ## ## #???????????? | | ????????????????????# " "???????????? | | ????????????????????# "%" "???????????? | | ????????????????????# " "???????????? | | ????????????????????# "???????????? | | ????????????????????### ## ## #???????????? | | ??????????????????????# ## ## #???????????? | | ??????????????????????# #???????????? | | ??????????????????????# #???????????? | | ??????????????????????# #???????????? | | ??????????????????????# ## ## ##???????????? | | ??????????????????????# #? ## #????????????? | | ??????????????????????# #??##### #????????????? | | ??????????????????????# #??????# #????????????? | | ??????????????????????# #??????? #????????????? | | ??????????????????????# #??????? #????????????? | | ??????????????????????# #???????? ?????????????? | +----------------------------------------------------+ Best States ------------- Heat Dissipation 31 Energy Generation 10 Energy Capacity 125 Matter Stores 300 Matter Capacity 300 Sight Range 16 Terrain Scan Range 16 Terrain Scan Density 10 Armor Coverage 150 Weapon Shielding 33 Evasion (%) 63 Item Schematics ----------------- Aluminum Leg | -9/Materials | Scanalyzed Robot Schematics ------------------ None Fabricated ------------ Nothing Repaired ---------- Nothing Studied --------- Aluminum Leg | -9/Materials | Hacked Alien Tech Used ----------------- None Achievements -------------- Resistances Are Futile Challenges ------------ None Game ------ Seed GatlingLatentNetwork Manual? 0 Play Time 00:38:17 Cumulative 5.9 hours Start 2026.02.08 @ 21:26:23 End 2026.02.08 @ 22:18:16 Sessions 1 Manual Loads 0 Difficulty Rogue Special Mode None Game No. 5 Rogue 4 Adventurer 0 Explorer 1 Win Type - Total 0 Types 0/0/0/0/0/0/0/0/0/0 Lore% 2 Gallery% 9 Achievement% 9 Wizard Run 0 Options --------- Layout 0 ASCII 1 Keyboard 1 Movement Vi Keybinds 0 Fullscreen 0 Font 32/SmallcapsGlow Map View 88x55 Zoom Use 0% Tactical HUD 1 Map Filters NONE Filters NONE Steam 0 RUN: f7f94f9b-bb89-4ea0-b5c0-e2bc0250ca7f